Cogmind - Beta 14 @@@ ROGUE MODE // 2025.05.04 @ 15:38:22 Player: VT-MNC Result: Establishing Free Derelict Territories! Performance ------------- Evolutions (9) 4500 Regions Visited (24) 4800 Robots Destroyed (468) 2340 Value Destroyed (23673) 23673 Prototype IDs (79) 1580 Alien Tech Used (9) 1800 Bonus (39948) 39948 TOTAL SCORE: 78641 Bonus ------- High Alert Combat Kills 6508 Follower Combat Kills 1946 Network Hubs Disabled 200 Met Imprinter 300 Met Warlord at Base 500 MAIN.C Attacked Warlord 500 Warlord Defense Kills 402 Built Enhanced Grunts 300 A7 Reached Mainframe 300 Met R17 at Cetus 500 Met R17 at Research 2000 Met Warlord at Research 2000 Destroyed MAIN.C Guards 500 Met MAIN.C 5000 Hacked MAIN.C 300 Destroyed MAIN.C Shell 5000 Destroyed MAIN.C 10000 Met Warlord at Command 2000 Win 3000 Friendly Fire -1308 Cogmind --------- Core Integrity 1756/1850 Matter 144/300 Energy 710/710 System Corruption 19% Temperature Cool (0) Movement Immobile (Siege) Location Free Derelict Territories Parts ------- > --- POWER (3) -------- Light Particle Reactor Zero-point Reactor Zero-point Reactor > --- PROPULSION (6) --- Experimental Biometal Heavy Treads Advanced Heavy Siege Treads High-density Centrium Heavy Treads > --- UTILITY (13) ----- Experimental Cooling System Huge Storage Unit Experimental Targeting Computer Experimental Targeting Computer Experimental Core Analyzer Quantum Capacitor Improved Weapon Cycler SHELL Armor Graphene Brace AEGIS Remote Shield > --- WEAPON (3) ------- Compact Linear Accelerator Graviton Cannon Graviton Cannon > --- INVENTORY (25) --- Zero-point Reactor Experimental Biometal Heavy Treads Advanced Heavy Siege Treads Advanced Cooling System Experimental Coolant Injector Experimental Coolant Injector Experimental Energy Well (600) Experimental Matter Compressor (211) Precision Energy Filter Improved Particle Charger Antimissile System Microwarp Drive Compact HERF Cannon Compact HERF Cannon Enhanced Nova Cannon Cooled Nova Cannon Gamma Bomb Array Neutron Missile Launcher Advanced Remote Datajack Core Stripper Peak State ------------ > --- POWER ------------ Light Particle Reactor Quantum Reactor Light Quantum Reactor > --- PROPULSION ------- Experimental Biometal Heavy Treads Advanced Heavy Siege Treads High-density Centrium Heavy Treads > --- UTILITY ---------- Advanced Cooling System Huge Storage Unit Advanced Targeting Computer Experimental Core Analyzer Precision Energy Filter Improved Particle Charger SHELL Armor AEGIS Remote Shield Antimissile System Microwarp Drive > --- WEAPON ----------- Advanced Remote Datajack Core Stripper > --- INVENTORY -------- Advanced Heavy Siege Treads Experimental Energy Well Experimental Matter Compressor Experimental Sensor Array Long-range Terrain Scanner Quantum Capacitor Improved Weapon Cycler Graphene Brace Subatomic Replicator Compact HERF Cannon Compact HERF Cannon Enhanced Nova Cannon Compact Linear Accelerator Graviton Cannon Gamma Bomb Array Neutron Missile Launcher [Rating: 243] Favorites ----------- Power Quantum Reactor Engine Heavy Ion Engine Power Core Micro Fission Core Reactor Quantum Reactor Propulsion Centrium Heavy Treads Treads Centrium Heavy Treads Leg Aluminum Leg Utility Huge Storage Unit Device Experimental Sensor Array Storage Huge Storage Unit Processor Advanced Signal Interpreter Hackware Experimental Hacking Suite Protection Centrium Medium Armor Plating Artifact Phase Armor Weapon Compact HERF Cannon Energy Gun Advanced Variable Charge Gun Energy Cannon Compact HERF Cannon Ballistic Gun Hypervelocity Coil Gun Ballistic Cannon Compact Linear Accelerator Launcher Heavy Proton Missile Launcher Special Weapon Advanced Remote Datajack Impact Weapon Core Stripper Slashing Weapon Scythe Build | -11 -10 -9 -9 -7 -6 -6 -6 -6 -6 -6 -5 -5 -5 -5 -4 -4 -4 -3 -3 -2 -2 -2 -1 -1 ------- Run | Yrd Mat Mat Min Zio Pro Fac Ext Cet Arc Hub Fac Upp Upp War Pro Fac Arm Res Qua Res Tes Sec Acc Com Slots Evolved 18 | . . 2 . . . 6 . . . . 2 . . . . 2 . 2 . 2 . . 2 . Power 2 | . . . . . . . . . . . . . . . . 1 . . . 1 . . . . Propulsion 4 | . . 1 . . . 3 . . . . . . . . . . . . . . . . . . Utility 11 | . . 1 . . . 2 . . . . 2 . . . . 1 . 2 . 1 . . 2 . Weapon 1 | . . . . . . 1 . . . . . . . . . . . . . . . . . . Parts Attached 768 | 4 9 56 19 11 10 18 49 11 7 13 41 18 4 21 5 52 58 33 34 35 91 55 66 48 Power 37 | . 3 4 . 1 . . 2 1 . . 1 . . . . 2 4 . 3 3 2 3 5 3 Engine 9 | . 3 4 . 1 . . 1 . . . . . . . . . . . . . . . . . Core 5 | . . . . . . . 1 . . . . . . . . 2 1 . 1 . . . . . Reactor 23 | . . . . . . . . 1 . . 1 . . . . . 3 . 2 3 2 3 5 3 Propulsion 61 | 2 1 10 . . 1 6 13 3 . 2 2 . . 2 . 1 3 3 . 2 6 2 1 1 Treads 59 | 2 1 10 . . 1 6 13 3 . 2 2 . . 1 . 1 3 3 . 2 5 2 1 1 Leg 2 | . . . . . . . . . . . . . . 1 . . . . . . 1 . . . Wheel . | . . . . . . . . . . . . . . . . . . . . . . . . . Hover . | . . . . . . . . . . . . . . . . . . . . . . . . . Flight . | . . . . . . . . . . . . . . . . . . . . . . . . . Utility 434 | 1 3 14 8 3 2 8 21 4 5 7 29 11 4 9 . 27 33 20 30 22 51 44 44 34 Device 328 | 1 . 7 7 2 2 6 16 . 4 7 18 10 1 4 . 20 27 10 18 22 45 33 42 26 Storage 8 | . 1 2 . . . . . . . . 1 . . 1 . . . 1 . . 1 . 1 . Processor 17 | . . . . . . 1 . 1 . . 1 1 1 1 . 1 . 2 2 . 1 2 . 3 Hackware 13 | . . . . . . . 1 . . . 3 . . . . 2 2 . 1 . 1 . . 3 Protection 60 | . 2 5 1 1 . 1 4 3 1 . 6 . 2 3 . 4 4 7 8 . 3 3 1 1 Artifact 8 | . . . . . . . . . . . . . . . . . . . 1 . . 6 . 1 Weapon 236 | 1 2 28 11 7 7 4 13 3 2 4 9 7 . 10 5 22 18 10 1 8 32 6 16 10 Energy Gun 9 | . . 1 . . . . . 1 . 1 . . . 3 1 . . . . . 2 . . . Energy Cannon 78 | . . 13 4 1 2 1 2 2 1 . 5 1 . 1 . 8 7 4 1 2 14 1 6 2 Ballistic Gun 21 | 1 2 5 . . . . . . . 3 3 3 . 1 . 2 . 1 . . . . . . Ballistic Cannon 51 | . . . 2 3 2 2 6 . . . . . . 1 2 5 2 3 . 2 10 2 4 5 Launcher 56 | . . 5 5 . 3 . 5 . . . 1 3 . 3 1 5 9 2 . 2 4 2 5 1 Special Weapon 7 | . . . . 2 . . . . . . . . . 1 . 2 . . . 1 . . . 1 Impact Weapon 5 | . . . . . . . . . . . . . . . . . . . . 1 1 1 1 1 Slashing Weapon 9 | . . 4 . 1 . 1 . . 1 . . . . . 1 . . . . . 1 . . . Piercing Weapon . | . . . . . . . . . . . . . . . . . . . . . . . . . Special Melee Weapon . | . . . . . . . . . . . . . . . . . . . . . . . . . Unidentified Prototypes 74 | . . 3 1 2 . . . 2 . 2 2 . . 9 . 1 3 1 4 2 23 11 1 7 Corrupted Parts 10 | . . . . . . . 1 3 . 5 . . . . . . . 1 . . . . . . System Corruption 62 | . . . . . . . 2 22 . 28 . . . . . . . 10 . . . . . . Parts Lost 15 | . 2 1 . . . 1 6 1 . . . . . . . . 1 . . . 2 1 . . Power 2 | . 1 . . . . . . . . . . . . . . . . . . . . 1 . . Propulsion 3 | . . . . . . . 2 . . . . . . . . . . . . . 1 . . . Utility 7 | . 1 1 . . . 1 2 . . . . . . . . . 1 . . . 1 . . . Weapon 3 | . . . . . . . 2 1 . . . . . . . . . . . . . . . . Highest Loss Streak 2 | . 1 1 . . . 1 2 1 . . . . . . . . 1 . . . 1 1 . . To Critical Strikes . | . . . . . . . . . . . . . . . . . . . . . . . . . Average Slot Usage (%) 87 | . 99 99 100 99 100 99 99 82 79 80 81 81 81 81 81 81 83 84 84 81 78 72 78 75 Engine 3 | . 13 10 11 11 11 6 4 . . . . . . . . . . . . . . . . . Reactor 5 | . . . . . . . . 4 6 6 4 5 5 5 5 5 9 9 8 12 12 7 10 12 Treads 22 | . 27 32 33 33 33 39 39 27 20 20 16 17 17 17 17 15 14 13 14 12 12 13 12 12 Device 12 | . 2 10 10 11 11 15 8 6 7 6 12 16 17 17 17 16 11 18 18 20 15 11 19 19 Storage 6 | . 14 11 11 11 11 6 6 6 6 6 5 5 5 5 5 5 5 4 4 4 4 4 4 4 Processor 6 | . . . . . . 2 6 11 6 6 5 5 5 5 5 6 10 14 14 13 13 13 12 10 Hackware 1 | . . . . . . . 4 . . . 3 . . . . 3 3 . . . 3 4 4 2 Protection 8 | . 11 11 11 11 11 7 6 7 11 13 11 11 10 10 11 8 10 8 7 . 2 3 4 3 Energy Cannon 8 | . . 13 12 10 6 6 6 7 11 13 10 5 5 4 5 5 6 8 9 7 7 8 7 6 Ballistic Gun 2 | . 27 4 . . . . . . . . 1 8 11 6 . 3 . . . . . . . . Ballistic Cannon 3 | . . . 4 5 10 11 11 . . . . . . . 4 4 4 3 4 . 3 3 2 2 Launcher 1 | . . . 5 . 5 . . . . . . 2 . . 5 1 3 . . 3 . . 1 . Peak Build Rating 243 | 8 8 29 34 40 34 59 63 110 110 121 139 141 139 144 144 160 158 173 182 209 218 240 235 243 Average Rating 112 | 6 7 22 27 30 31 55 56 85 108 114 133 138 138 139 143 151 153 167 163 196 204 211 223 224 On Entrance 111 | 6 8 8 29 28 32 32 59 57 110 110 121 139 139 139 144 144 150 149 166 182 198 208 212 224 Naked Turns . | . . . . . . . . . . . . . . . . . . . . . . . . . Heaviest Build 234 | 12 21 108 114 112 113 132 128 139 139 139 147 143 140 145 139 154 163 181 189 234 229 212 231 225 Greatest Support 255 | 40 40 66 66 66 66 132 136 240 240 240 240 240 240 240 240 240 240 240 230 230 255 255 255 255 Greatest Overweight (x) 54 | . . 2 1 1 1 1 1 . 45 . . . . . . . . 54 . 1 2 . . . Average Overweight (x) . | . . . 1 1 1 . . . 6 . . . . . . . . . . . . . . . Largest Inventory Capacity 25 | 8 10 25 25 25 25 25 25 25 25 25 25 25 25 25 25 25 25 25 25 25 25 25 25 25 Average Capacity 24 | 8 9 24 25 25 25 25 25 25 25 25 25 25 25 25 25 25 25 25 25 25 25 25 25 25 Most Carried 25 | 8 10 25 25 25 25 25 25 25 25 25 25 25 25 25 25 25 25 25 25 25 25 25 25 25 Average Carried 23 | 7 9 22 24 24 24 24 24 24 24 24 24 25 25 24 25 24 23 23 24 24 24 24 23 23 Final Capacity 25 | 8 10 25 25 25 25 25 25 25 25 25 25 25 25 25 25 25 25 25 25 25 25 25 25 25 Final Carried 25 | 8 10 25 25 25 25 25 25 25 25 25 25 25 25 25 25 24 23 25 25 25 25 25 25 24 Class Distribution -------------------- 32% | Mutant 21% | Scavenger-Tank 15% | Skirmisher 9% | Gunner 7% | Scavenger-Skirmisher 6% | Commander-Mutant Dominant Class ---------------- Mutant | -10/Materials Mutant | -9/Materials Mutant | -9/Mines Mutant | -7/Zion Mutant | -6/Proximity Caves Scavenger-Skirmisher | -6/Factory Scavenger-Tank | -6/Extension Scavenger-Mutant | -6/Cetus Commander-Mutant | -6/Archives Scavenger-Mutant | -6/Hub_04(d) Scavenger-Tank | -5/Factory Scavenger-Tank | -5/Upper Caves Scavenger-Tank | -5/Upper Caves Scavenger-Tank | -5/Warlord Scavenger-Tank | -4/Proximity Caves Scavenger-Tank | -4/Factory Scavenger-Skirmisher | -4/Armory Skirmisher | -3/Research Skirmisher | -3/Quarantine Skirmisher | -2/Research Gunner | -2/Testing Skirmisher | -2/Section 7 Skirmisher | -1/Access Gunner | -1/Command Resources | -11 -10 -9 -9 -7 -6 -6 -6 -6 -6 -6 -5 -5 -5 -5 -4 -4 -4 -3 -3 -2 -2 -2 -1 -1 ----------- Run | Yrd Mat Mat Min Zio Pro Fac Ext Cet Arc Hub Fac Upp Upp War Pro Fac Arm Res Qua Res Tes Sec Acc Com Matter Collected 13283 | 315 437 839 193 164 360 344 1596 147 119 70 489 501 46 266 115 959 1154 361 439 517 1212 1015 1066 559 Remotely . | . . . . . . . . . . . . . . . . . . . . . . . . . Salvage Created 24731 | 217 690 2290 333 . 437 241 1607 227 445 557 984 321 . 128 . 1346 3134 600 658 858 3119 1665 4230 644 Parts 1152 | 14 70 130 15 . 17 10 67 10 27 24 43 27 . 9 . 55 102 32 36 36 139 69 200 20 Haulers Intercepted 8 | . 2 6 . . . . . . . . . . . . . . . . . . . . . . Recyclers Shooed 12 | 1 1 5 . . . . . . . . 2 . . . . . . . 3 . . . . . Parts Field Recycled . | . . . . . . . . . . . . . . . . . . . . . . . . . Retrieved Matter . | . . . . . . . . . . . . . . . . . . . . . . . . . Parts Self-Destructed 40 | . . . . 2 20 . . . . . . 18 . . . . . . . . . . . . Prevented 10 | . . . . . . . . . . . . 10 . . . . . . . . . . . . Kills | -11 -10 -9 -9 -7 -6 -6 -6 -6 -6 -6 -5 -5 -5 -5 -4 -4 -4 -3 -3 -2 -2 -2 -1 -1 ------- Run | Yrd Mat Mat Min Zio Pro Fac Ext Cet Arc Hub Fac Upp Upp War Pro Fac Arm Res Qua Res Tes Sec Acc Com Combat Hostiles Destroyed 356 | . 14 42 8 . 11 7 28 3 2 5 13 15 . 5 . 19 40 9 7 13 36 18 55 6 Guns 19 | . 11 7 . . . . . . . . . 1 . . . . . . . . . . . . Cannons 173 | . . 27 2 . 4 6 23 . 1 3 8 2 . . . 9 10 8 5 7 21 11 24 2 AOE 81 | . 3 7 6 . 7 1 5 . . . 1 12 . 5 . 4 11 . . . 4 3 12 . Classes Destroyed 24 | 2 5 4 . . 2 . 1 . . . 1 1 . 1 . . 4 . . 2 1 . . . Worker 18 | . 4 1 . . . . 1 . . 2 1 . . . . 1 . . 1 . 1 1 3 2 Builder 7 | . . 2 . . . . 1 . . . . . . . . . . 2 . . . . 2 . Tunneler 19 | 5 3 4 1 . . . 4 . . . 2 . . . . . . . . . . . . . Hauler 8 | . 2 6 . . . . . . . . . . . . . . . . . . . . . . Recycler 17 | 1 1 5 1 . . . 2 . . 1 . . . . . 1 . . 1 . 1 . 2 1 Minesweeper 2 | . . . . . . . . . . . . 2 . . . . . . . . . . . . Mechanic 3 | . . . . . . . . . . . . . . . . . 2 . . . . . 1 . Operator 13 | . . 2 . . . 1 . . 9 . . . . . . . . . . . . 1 . . Drone 1 | . . . . . 1 . . . . . . . . . . . . . . . . . . . Watcher 20 | . 3 4 . . . . . . . 1 2 . . . . 1 . . 1 . 3 1 2 2 Swarmer 71 | . 8 14 . . . 3 5 . . . . 13 . 2 . 1 5 4 . 1 5 . 10 . Saboteur 1 | . . . . . . . . . . . . . . . . . 1 . . . . . . . Grunt 128 | . 6 18 7 . 9 3 13 . . 1 6 1 . 2 . 8 16 4 2 . 10 8 13 1 Brawler 6 | . . 1 1 . 1 1 . . . . . . . . . . 1 . . . . . 1 . Duelist 8 | . . . . . 1 . 1 . . . . . . . . 1 5 . . . . . . . Protector 2 | . . . . . . . . . . . . . . 1 . . . . . . . . 1 . Sentry 40 | . . 9 . . . . 7 . 2 2 1 1 . . . 3 1 1 . . . 3 8 2 Demolisher 1 | . . . . . . . . . . . . . . . . . 1 . . . . . . . Specialist 5 | . . . . . . . . . . . . . . . . . 5 . . . . . . . Hunter 23 | . . . . . . . . . . 2 2 . . . . . 2 . . 2 4 2 9 . Programmer 60 | . . . . . . . . . . . 4 . . . . 6 6 . 5 4 16 5 13 1 Cetus Guard 3 | . . . . . . . . 3 . . . . . . . . . . . . . . . . M Guard 2 | . . . . . . . . . . . . . . . . . . . . . . . . 2 Striker 5 | . . . . . . . . . . . . . . . . . . . . 5 . . . . Executioner 1 | . . . . . . . . . . . . . . . . . . . . 1 . . . . Fortress 1 | . . . . . . . . . . . . . . . . . . . . . 1 . . . Guerrilla 3 | . . . . . . . 3 . . . . . . . . . . . . . . . . . Best Kill Streak 11 | 3 4 9 4 . 4 3 3 2 3 3 3 5 . 5 . 4 9 5 3 2 6 5 11 2 Combat Bots Only 8 | . 3 6 3 . 4 3 3 2 1 2 2 5 . 5 . 4 8 5 2 2 6 5 8 2 Max Kills in Single Turn 8 | 1 3 2 2 . 2 1 2 1 1 2 1 4 . 3 . 2 3 1 1 1 3 4 8 2 Gunslinging 1 | . . 1 . . . . . . . . . . . . . . . . . . . . . . Exploded 4 | . 3 2 2 . 2 1 2 . . . 1 4 . 3 . 2 3 . . . 3 3 3 . Melee . | . . . . . . . . . . . . . . . . . . . . . . . . . Uniques/NPCs Destroyed . | . . . . . . . . . . . . . . . . . . . . . . . . . Combat | -11 -10 -9 -9 -7 -6 -6 -6 -6 -6 -6 -5 -5 -5 -5 -4 -4 -4 -3 -3 -2 -2 -2 -1 -1 -------- Run | Yrd Mat Mat Min Zio Pro Fac Ext Cet Arc Hub Fac Upp Upp War Pro Fac Arm Res Qua Res Tes Sec Acc Com Hostile Shots Fired 1873 | . 69 175 5 . 36 35 278 20 5 75 46 44 . 13 . 111 207 35 14 87 180 168 255 15 Missed 489 | . 16 48 1 . 16 6 104 9 3 21 5 14 . 3 . 20 62 7 2 15 39 40 56 2 Intercepted 4 | . . . . . . . . . . . . . . . . . . . . . . . . 4 Damage Taken 20518 | . 523 1263 58 . 424 579 1610 260 39 590 979 550 . 279 . 1484 2500 799 330 1119 1871 2587 2452 222 Core 1945 | . 58 155 . . 34 20 69 . 20 42 . . . 41 . 42 210 38 24 219 273 606 72 22 Absorbed by Shields 6637 | . . . . . . . 206 82 . . . 54 . . . 403 . 366 22 623 1525 806 2356 194 Reduced by Siege Mode 1029 | . . . . . . . . 6 . 58 52 52 . . . 184 165 67 47 58 127 73 134 6 Redirected to Core 385 | . . . . . . . . . . . . . . . . . . . . 181 204 . . . Ignored by Resistances 829 | . . 75 . . . 60 65 85 10 90 64 36 . . . . 344 . . . . . . . Regen/Repaired (Parts) 6233 | . 152 247 . . . 191 . . . . 900 . . 244 . 526 785 357 244 . 540 550 1396 101 Core Remaining (%) 78 | 100 76 . . . 52 . . . . 82 . . . . 95 . 78 . 95 . . 35 . 94 Volleys Fired 1277 | 20 101 136 10 . 21 19 93 15 11 30 82 26 . 13 . 67 60 52 49 45 133 73 172 49 Largest 3 | 2 2 2 2 . 2 3 3 1 1 2 2 3 . 3 . 3 3 2 2 2 3 3 3 3 Hottest 284 | 60 40 136 136 . 125 190 190 75 75 160 192 172 . 126 . 254 214 207 207 214 284 284 284 214 Shots Fired 1894 | 40 202 266 19 . 35 52 218 17 11 31 82 46 1 17 . 128 96 58 52 59 145 80 181 58 Gun 370 | 40 202 76 . . . . . . . . 1 18 . 3 . 30 . . . . . . . . Cannon 1403 | . . 182 12 . 25 52 211 17 11 31 81 16 1 10 . 88 65 55 52 50 142 76 171 55 Launcher 113 | . . 8 7 . 10 . 7 . . . . 12 . 4 . 5 31 3 . 8 3 4 10 1 Special 8 | . . . . . . . . . . . . . . . . 5 . . . 1 . . . 2 Kinetic 619 | 35 202 53 . . 19 33 142 . . . 1 18 . . . 60 20 4 . 5 7 2 6 12 Thermal 690 | 5 . 205 12 . 6 19 10 1 . 8 50 2 1 10 . 27 21 32 37 22 86 34 81 21 Explosive 61 | . . 8 7 . 10 . 7 . . . . 12 . 4 . 6 . . . . . . 6 1 Electromagnetic 518 | . . . . . . . 59 16 11 23 31 14 . . . 35 55 22 15 31 52 44 88 22 Entropic 3 | . . . . . . . . . . . . . . 3 . . . . . . . . . . Robot Hit Streak 35 | 7 11 12 11 . 9 8 10 5 3 7 13 8 . 8 . 31 11 10 13 11 35 14 10 11 Robot Miss Streak 6 | 4 5 4 1 . 6 2 6 4 1 2 2 3 . . . 3 3 1 2 2 2 2 6 3 Penetration Max 2 | . . . . . 1 . 2 . . . . . . . . 1 . . . . . . . . Secondary Targets 2 | . 1 1 . . . . . . . . . . . . . . . . . . . . . . Max Gunslinging Chain 1 | . 1 1 . . . . . . . . . . . . . . . . . . . . . . Capacitor 26 | . . . . . . . . . . . . . . . . . . . . . . . . 26 Shots Hit Robots 1100 | 25 110 155 11 . 21 27 115 10 25 21 34 24 . 5 . 86 62 31 18 42 85 48 108 37 Core Hits 704 | 10 46 72 14 . 29 11 73 3 11 14 17 25 . 20 . 41 95 15 9 12 51 32 90 14 Critical Kills 25 | . 1 2 . . 2 1 12 . . . 1 2 . . . 2 . . . . . . 2 . Critical Parts Destroyed 37 | . 1 . . . 4 1 23 . . . . 1 . . . 6 . . . 1 . . . . Critical Strikes 90 | . 2 7 . . 6 2 41 . . 1 1 4 . . . 12 4 1 . 4 1 1 2 1 Burn 5 | . . 5 . . . . . . . . . . . . . . . . . . . . . . Meltdown 6 | . . 2 . . . . . . . . 1 . . . . 1 . . . . . . 2 . Destroy 62 | . 2 . . . 6 2 38 . . . . 4 . . . 7 . . . 3 . . . . Blast 7 | . . . . . . . . . . . . . . . . 2 4 . . . 1 . . . Corrupt 9 | . . . . . . . 3 . . 1 . . . . . 1 . 1 . 1 . 1 . 1 Sever 1 | . . . . . . . . . . . . . . . . 1 . . . . . . . . Melee Attacks 50 | . . 12 . 1 . 4 . . 21 . . . . . . . . . . 4 3 . . 5 Kinetic 12 | . . . . . . . . . . . . . . . . . . . . 4 3 . . 5 Impact . | . . . . . . . . . . . . . . . . . . . . . . . . . Slashing 38 | . . 12 . 1 . 4 . . 21 . . . . . . . . . . . . . . . Piercing . | . . . . . . . . . . . . . . . . . . . . . . . . . Sneak Attacks 20 | . . 1 . . . . . . 15 . . . . . . . . . . 4 . . . . Combat Hostiles . | . . . . . . . . . . . . . . . . . . . . . . . . . Follow-up Attacks . | . . . . . . . . . . . . . . . . . . . . . . . . . Damage Inflicted 51141 | 272 1564 3959 722 . 1288 1154 4571 321 1473 996 1629 1594 . 1352 . 3641 5475 1230 1107 1980 4796 2412 7987 1618 Guns 2500 | 272 1195 615 . . . . . . . . . 111 . 109 . 198 . . . . . . . . Cannons 30438 | . . 2407 205 . 404 778 3739 321 219 629 1500 264 . . . 2713 1783 1119 1051 1260 4107 1969 4747 1223 Explosions 15836 | . 358 856 493 . 884 351 818 . . 367 73 1219 . 1243 . 601 3635 111 . 340 620 443 3219 205 Melee 1909 | . . 63 . . . . . . 1254 . . . . . . . . . . 380 69 . . 143 Ramming 347 | . 11 18 24 . . 25 14 . . . 56 . . . . 18 57 . 56 . . . 21 47 Kinetic 8043 | 229 1195 359 . . 300 424 2243 . . . . 111 . . . 1130 627 126 . 439 158 . 155 547 Thermal 13163 | 43 . 2663 205 . 104 354 247 . . 90 580 . . . . 560 708 431 533 665 2152 815 2765 248 Explosive 8469 | . 358 856 493 . 884 351 818 . . . . 1219 . 1243 . 501 . . . . . . 1541 205 Electromagnetic 19582 | . . . . . . . 1249 321 219 906 993 264 . . . 1321 4083 673 518 876 2486 1597 3505 571 Impact . | . . . . . . . . . . . . . . . . . . . . . . . . . Slashing 1428 | . . 63 . . . . . . 1254 . . . . . . 111 . . . . . . . . Piercing . | . . . . . . . . . . . . . . . . . . . . . . . . . Entropic 109 | . . . . . . . . . . . . . . 109 . . . . . . . . . . Highest Corruption 28 | . 3 . . . . 2 4 26 26 28 6 6 6 6 . 3 10 12 8 4 12 20 14 19 Average Corruption 7 | . 1 . . . . 2 3 21 19 18 2 6 6 6 . 1 4 7 5 3 6 15 9 15 Corruption Purged 42 | . . . . . . . . . 26 . . . . . . . . 7 7 . 2 . . . Corruption Blocked . | . . . . . . . . . . . . . . . . . . . . . . . . . Effects 488 | . 2 . . . . 4 37 24 26 1 26 30 13 3 . 17 33 15 31 21 65 55 43 42 Message Errors 109 | . . . . . . 2 3 6 8 . 3 8 2 2 . 3 3 2 8 5 18 10 9 17 Matter Fused 127 | . . . . . . 1 15 3 7 1 9 7 5 . . 5 12 2 9 6 21 7 8 9 Heat Flow Errors 55 | . . . . . . . 3 3 1 . 2 5 3 . . 1 4 8 3 2 5 6 6 3 Energy Discharges 57 | . 1 . . . . . 5 2 2 . 3 3 2 . . 3 8 . 3 2 5 7 8 3 Parts Rejected 5 | . . . . . . . . . . . . . . . . 1 . . . . . 2 2 . Parts Fused 1 | . . . . . . . . . . . . . . . . . . . . . . . 1 . Data Loss (minor) 63 | . 1 . . . . . 3 4 4 . 2 4 . 1 . 3 4 2 3 3 9 13 4 3 Data Loss (major) 26 | . . . . . . 1 3 3 2 . 4 2 . . . . 1 . 3 3 1 2 . 1 Misfires 16 | . . . . . . . 3 2 1 . . . 1 . . . . . 1 . 3 2 2 1 Alerts 13 | . . . . . . . 2 1 . . 2 . . . . . 1 1 1 . 1 2 1 1 Misdirections 4 | . . . . . . . . . . . . . . . . . . . . . . 2 1 1 Weapon Failures 12 | . . . . . . . . . 1 . 1 1 . . . 1 . . . . 2 2 1 3 Overload Shots . | . . . . . . . . . . . . . . . . . . . . . . . . . Overflow Damage 1812 | . 90 70 2 . . 31 98 4 416 18 37 49 . . . 110 16 36 90 19 275 65 317 69 Projectiles 936 | . . 22 2 . . 20 59 4 . . 37 . . . . 110 7 36 64 19 275 65 164 52 Explosions 394 | . 90 25 . . . 11 39 . . 18 . 49 . . . . 9 . . . . . 153 . Melee 482 | . . 23 . . . . . . 416 . . . . . . . . . 26 . . . . 17 Knockbacks 34 | . . . . . 1 2 10 . . . . . . . . 6 6 . . 1 2 . 1 5 Impact 2 | . . . . . . . 1 . . . . . . . . . 1 . . . . . . . Kinetic 31 | . . . . . 1 2 9 . . . . . . . . 6 4 . . 1 2 . 1 5 Secondary 1 | . . . . . . . . . . . . . . . . . 1 . . . . . . . Self-Inflicted Damage 1227 | . . 61 . . . 114 86 . . 101 59 164 . . . . 416 . . . . . 226 . Shots 46 | . . 2 . . . 1 2 . . 1 1 3 . . . . 29 . . . . . 7 . Rammed 13 | . 2 1 2 . . 1 1 . . . 2 . . . . 1 1 . 1 . . . . 1 Targets Rammed 15 | . 3 1 2 . . 1 1 . . . 2 . . . . 1 1 . 1 . . . 1 1 Kicked . | . . . . . . . . . . . . . . . . . . . . . . . . . Crushed 2 | . 1 . . . . . . . . . . . . . . . . . . . . . 1 . Highest Temperature 464 | 20 22 270 222 . 289 383 330 263 96 163 139 241 238 150 . 366 364 262 166 288 464 330 370 201 Average Temperature 76 | 20 5 68 81 . 90 159 71 81 43 45 25 77 89 60 . 96 112 37 33 100 85 87 91 65 Received Heat Transfer 2961 | . 138 411 36 . 183 45 537 9 . 111 99 21 . 27 . 222 738 47 9 . 74 68 152 34 Effects 18 | . . . 2 . 1 . 3 2 . . . . . . . 3 1 . . 2 3 1 . . Shutdowns 5 | . . . . . . . . . . . . . . . . 2 1 . . . 1 1 . . Energy Bleed 5 | . . . . . 1 . 1 1 . . . . . . . 1 . . . . 1 . . . Interference 8 | . . . 2 . . . 2 1 . . . . . . . . . . . 2 1 . . . Siege Activations 115 | . . . . . . . . 1 . 4 9 5 . 1 . 10 13 5 6 6 17 11 21 6 Total Turns 1275 | . . . . . . . . 4 . 41 126 38 . 4 . 143 180 38 89 68 175 92 189 88 Longest Duration 72 | . . . . . . . . 4 . 14 53 13 . 4 . 28 72 24 26 22 38 25 21 54 Robots Corrupted 79 | . . . . . . . . 3 1 3 4 . . . . 5 19 1 3 6 10 4 17 3 Combat Hostiles 76 | . . . . . . . . 3 1 2 4 . . . . 5 19 1 2 6 10 4 17 2 Parts Fried 173 | . . . . . . . 5 1 1 8 8 1 . . . 9 53 5 6 7 16 18 32 3 Impact Corruptions 2 | . . . . . . . . . . . . . . . . . . . 1 . . . . 1 Robots Melted 6 | . . 2 . . . . . . . . 1 . . . . 1 . . . . . . 2 . Combat Hostiles 4 | . . 1 . . . . . . . . . . . . . 1 . . . . . . 2 . Parts Melted 35 | . . 12 1 . . . . . . . 5 . . . . 3 . 2 . . 4 . 8 . Heat Transferred 13665 | 100 . 5180 370 . 185 444 296 . . 111 609 . . . . 518 731 407 370 457 1419 581 1758 129 Parts Sabotaged . | . . . . . . . . . . . . . . . . . . . . . . . . . Parts Stolen . | . . . . . . . . . . . . . . . . . . . . . . . . . Parts Stripped 50 | . . . . . . . . . . . . . . . . . . . . . 18 . . 32 Power Chain Reactions 12 | . . . . . . . 1 . . . . . . . . . 4 1 . 1 1 1 3 . Alert | -11 -10 -9 -9 -7 -6 -6 -6 -6 -6 -6 -5 -5 -5 -5 -4 -4 -4 -3 -3 -2 -2 -2 -1 -1 ------- Run | Yrd Mat Mat Min Zio Pro Fac Ext Cet Arc Hub Fac Upp Upp War Pro Fac Arm Res Qua Res Tes Sec Acc Com Peak Influence 1983 | 30 185 939 416 . . 885 1483 1030 590 338 419 . . . . 442 1036 582 263 309 710 914 1983 1646 Initial 1268 | . 19 28 366 . . 750 150 823 332 3 165 . . . . . 216 384 107 13 93 399 501 1268 Average 406 | 18 81 432 255 . . 685 548 884 231 129 129 . . . . 93 644 339 96 111 347 648 1127 1482 Maximum Alert Level 5 | . . 3 2 . . 3 4 3 2 1 2 . . . . 2 3 2 1 1 3 3 5 5 Low Security (%) 43 | 100 100 26 35 . . . 23 . 48 58 88 . . . . 88 . 16 91 94 36 . . . Level 1 17 | . . 13 37 . . 9 31 . 35 41 8 . . . . 8 29 55 8 5 24 2 . . Level 2 17 | . . 43 27 . . 22 7 . 15 . 2 . . . . 2 20 28 . . 30 55 16 . Level 3 14 | . . 17 . . . 67 26 100 . . . . . . . . 49 . . . 8 42 32 . Level 4 5 | . . . . . . . 10 . . . . . . . . . . . . . . . 33 84 Level 5 1 | . . . . . . . . . . . . . . . . . . . . . . . 18 15 High Security . | . . . . . . . . . . . . . . . . . . . . . . . . . Max Security . | . . . . . . . . . . . . . . . . . . . . . . . . . Squads Dispatched 88 | . 1 8 . . . 3 5 . . 2 8 . . . . 5 8 9 4 . 10 5 15 5 Investigation 22 | . . 3 . . . 1 . . . 1 3 . . . . 2 2 7 2 . . . 1 . Extermination 26 | . . . . . . 1 . . . . 2 . . . . 3 2 . 2 . 7 3 4 2 Reinforcement 21 | . 1 4 . . . 1 2 . . 1 2 . . . . . 1 2 . . 3 2 1 1 Assault 12 | . . 1 . . . . 3 . . . . . . . . . 3 . . . . . 3 2 Garrison 7 | . . . . . . . . . . . 1 . . . . . . . . . . . 6 . Intercept . | . . . . . . . . . . . . . . . . . . . . . . . . . Searches Triggered 2 | . . . . . . 2 . . . . . . . . . . . . . . . . . . Construction Impeded 3 | . . 2 . . . . 1 . . . . . . . . . . . . . . . . . Haulers Reinforced 1 | . . . . . . . . . . . . . . . . . . . . . . . 1 . Active Scanning Responses . | . . . . . . . . . . . . . . . . . . . . . . . . . Cargo Convoy Interrupts . | . . . . . . . . . . . . . . . . . . . . . . . . . Stealth | -11 -10 -9 -9 -7 -6 -6 -6 -6 -6 -6 -5 -5 -5 -5 -4 -4 -4 -3 -3 -2 -2 -2 -1 -1 --------- Run | Yrd Mat Mat Min Zio Pro Fac Ext Cet Arc Hub Fac Upp Upp War Pro Fac Arm Res Qua Res Tes Sec Acc Com Distress Signals 47 | . 4 7 . . . . . 2 . 2 1 . . . . 1 1 6 2 9 1 5 5 1 Communications Jammed 52 | . . . . . . . . . . . . . . . . . . . . . 40 . 12 . Distress Signals 52 | . . . . . . . . . . . . . . . . . . . . . 40 . 12 . Times Spotted 583 | . 41 65 6 . 16 13 47 9 18 7 24 17 . 23 . 33 53 15 9 23 44 34 66 20 Peak Tracking Total 13 | . 4 5 3 . 6 3 7 5 2 4 5 5 . 13 . 5 9 4 2 7 6 9 7 5 Tactical Retreats 40 | . 1 4 . . . 4 3 . . . 2 1 . . . 6 4 . . 2 5 4 3 1 Traps | -11 -10 -9 -9 -7 -6 -6 -6 -6 -6 -6 -5 -5 -5 -5 -4 -4 -4 -3 -3 -2 -2 -2 -1 -1 ------- Run | Yrd Mat Mat Min Zio Pro Fac Ext Cet Arc Hub Fac Upp Upp War Pro Fac Arm Res Qua Res Tes Sec Acc Com Traps Triggered 16 | . 3 3 . . . 1 . . . . 4 . . . . 1 1 . 2 . . . 1 . Indirectly 1 | . . . . . . . . . . . . . . . . . 1 . . . . . . . Trap Hack Attempts . | . . . . . . . . . . . . . . . . . . . . . . . . . Triggered . | . . . . . . . . . . . . . . . . . . . . . . . . . Disarmed 3 | . 3 . . . . . . . . . . . . . . . . . . . . . . . Reprogrammed . | . . . . . . . . . . . . . . . . . . . . . . . . . Reused . | . . . . . . . . . . . . . . . . . . . . . . . . . Traps Extracted . | . . . . . . . . . . . . . . . . . . . . . . . . . Installed . | . . . . . . . . . . . . . . . . . . . . . . . . . Triggered 9 | . . . . . . . . . . . . . . 7 . . . . . . . . 2 . Machines | -11 -10 -9 -9 -7 -6 -6 -6 -6 -6 -6 -5 -5 -5 -5 -4 -4 -4 -3 -3 -2 -2 -2 -1 -1 ---------- Run | Yrd Mat Mat Min Zio Pro Fac Ext Cet Arc Hub Fac Upp Upp War Pro Fac Arm Res Qua Res Tes Sec Acc Com Machines Disabled 49 | . 2 2 . . . 1 4 . . 6 3 . . 1 . 4 4 . 4 2 5 7 1 3 Max in Single Turn 6 | . 1 1 . . . 1 1 . . 6 3 . . 1 . 2 1 . 1 1 1 1 1 2 Garrison Access 4 | . . . . . . . . . . . 1 . . . . . . . . 1 . . 2 . Phase Generator 1 | . . . . . . . . . . . . . . . . . . . . . . . . 1 Network Hub 1 | . . . . . . . . . . 1 . . . . . . . . . . . . . . Machines Repaired . | . . . . . . . . . . . . . . . . . . . . . . . . . Machines Dismantled . | . . . . . . . . . . . . . . . . . . . . . . . . . Machines Sabotaged . | . . . . . . . . . . . . . . . . . . . . . . . . . Overloaded Fab Kills . | . . . . . . . . . . . . . . . . . . . . . . . . . Hacking | -11 -10 -9 -9 -7 -6 -6 -6 -6 -6 -6 -5 -5 -5 -5 -4 -4 -4 -3 -3 -2 -2 -2 -1 -1 --------- Run | Yrd Mat Mat Min Zio Pro Fac Ext Cet Arc Hub Fac Upp Upp War Pro Fac Arm Res Qua Res Tes Sec Acc Com Machines Accessed 109 | . 9 9 . . . 8 14 1 . . 15 1 2 1 . 3 8 3 13 . 7 4 8 3 Terminals 80 | . 8 8 . . . 5 14 1 . . 9 . . . . . 5 1 11 . 5 4 6 3 Fabricators 3 | . . . . . . . . . . . 2 . . . . . 1 . . . . . . . Repair Stations 12 | . 1 1 . . . 2 . . . . 2 . . . . 1 2 1 1 . 1 . . . Recycling Units . | . . . . . . . . . . . . . . . . . . . . . . . . . Scanalyzers 6 | . . . . . . 1 . . . . 1 . . . . 2 . . 1 . 1 . . . Garrison Access 4 | . . . . . . . . . . . 1 . . . . . . 1 . . . . 2 . Total Hacks 317 | . 31 29 . . . 24 30 1 . . 67 1 4 1 . 13 29 5 32 . 19 11 15 5 Successful 147 | . 16 12 . . . 12 14 1 . . 29 1 4 1 . 8 17 1 13 . 5 3 7 3 Failed 170 | . 15 17 . . . 12 16 . . . 38 . . . . 5 12 4 19 . 14 8 8 2 Catastrophic 39 | . 1 4 . . . 3 3 . . . 8 . . . . . 2 3 9 . 3 3 . . Database Lockouts . | . . . . . . . . . . . . . . . . . . . . . . . . . Manual 113 | . 15 13 . 1 . 6 9 1 . . 25 . . . . . 14 2 11 . 7 6 . 3 Terminals 224 | . 25 21 . . . 14 30 1 . . 48 . . . . . 19 3 23 . 13 11 11 5 Fabricators 9 | . . . . . . . . . . . 4 . . . . . 5 . . . . . . . Repair Stations 45 | . 6 8 . . . 7 . . . . 10 . . . . 2 5 1 1 . 5 . . . Recycling Units . | . . . . . . . . . . . . . . . . . . . . . . . . . Scanalyzers 27 | . . . . . . 3 . . . . 4 . . . . 11 . . 8 . 1 . . . Garrison Access 6 | . . . . . . . . . . . 1 . . . . . . 1 . . . . 4 . Terminal Hacks 69 | . 9 6 . . . 4 11 1 . . 10 1 4 1 . . 8 . 4 . 1 2 5 2 Record 4 | . . . . . . . . . . . . . 3 . . . . . 1 . . . . . Part Schematic 2 | . 1 . . . . . . . . . 1 . . . . . . . . . . . . . Robot Analysis 6 | . 2 2 . . . . 1 . . . 1 . . . . . . . . . . . . . Prototype ID Bank 2 | . 1 1 . . . . . . . . . . . . . . . . . . . . . . Open Door 19 | . . . . . . . 8 1 . . . 1 1 1 . . 2 . . . . 1 3 1 Level Access Points 3 | . . . . . . . . . . . 1 . . . . . 1 . 1 . . . . . Branch Access Points 5 | . 1 1 . . . 1 . . . . 1 . . . . . . . . . . . 1 . Terminal Index 2 | . . 1 . . . . . . . . . . . . . . . . . . 1 . . . Repair Station Index 1 | . . . . . . . . . . . 1 . . . . . . . . . . . . . Unreport Threat 11 | . . . . . . 2 1 . . . 2 . . . . . 4 . 1 . . . 1 . Locate Traps 3 | . . . . . . . . . . . . . . . . . 1 . 1 . . 1 . . Disarm Traps 1 | . 1 . . . . . . . . . . . . . . . . . . . . . . . Security Status 1 | . 1 . . . . . . . . . . . . . . . . . . . . . . . Transport Status 1 | . 1 . . . . . . . . . . . . . . . . . . . . . . . Recall Investigation 1 | . . . . . . . . . . . 1 . . . . . . . . . . . . . Hauler Manifests 1 | . . . . . . 1 . . . . . . . . . . . . . . . . . . Registered Components 1 | . . 1 . . . . . . . . . . . . . . . . . . . . . . Zone Layout 4 | . 1 . . . . . 1 . . . 2 . . . . . . . . . . . . . Disengage Seal 1 | . . . . . . . . . . . . . . . . . . . . . . . . 1 Fabricator Hacks 5 | . . . . . . . . . . . 3 . . . . . 2 . . . . . . . Load Schematic 3 | . . . . . . . . . . . 2 . . . . . 1 . . . . . . . Build 2 | . . . . . . . . . . . 1 . . . . . 1 . . . . . . . Repair Station Hacks 31 | . 4 5 . . . 5 . . . . 8 . . . . 2 4 . . . 3 . . . Scan Component 18 | . 2 3 . . . 3 . . . . 5 . . . . 1 2 . . . 2 . . . Repair 13 | . 2 2 . . . 2 . . . . 3 . . . . 1 2 . . . 1 . . . Recycling Unit Hacks . | . . . . . . . . . . . . . . . . . . . . . . . . . Scanalyzer 16 | . . . . . . 2 . . . . 3 . . . . 6 . . 5 . . . . . Insert Component 7 | . . . . . . 1 . . . . 1 . . . . 3 . . 2 . . . . . Analyze 9 | . . . . . . 1 . . . . 2 . . . . 3 . . 3 . . . . . Garrison Access Hacks 3 | . . . . . . . . . . . 1 . . . . . . . . . . . 2 . Seal Access 3 | . . . . . . . . . . . 1 . . . . . . . . . . . 2 . Unauthorized Hacks 23 | . 3 1 . . . 1 3 . . . 4 . . . . . 3 1 4 . 1 1 . 1 Terminals 17 | . 3 1 . . . 1 3 . . . 3 . . . . . 2 . 2 . . 1 . 1 Assimilate 2 | . . . . . . . . . . . 1 . . . . . 1 . . . . . . . Botnet 14 | . 2 1 . . . 1 3 . . . 2 . . . . . 1 . 2 . . 1 . 1 Operators 1 | . 1 . . . . . . . . . . . . . . . . . . . . . . . Fabricators 1 | . . . . . . . . . . . 1 . . . . . . . . . . . . . Recompile 1 | . . . . . . . . . . . 1 . . . . . . . . . . . . . Repair Stations 3 | . . . . . . . . . . . . . . . . . 1 1 1 . . . . . Patch 3 | . . . . . . . . . . . . . . . . . 1 1 1 . . . . . Recycling Units . | . . . . . . . . . . . . . . . . . . . . . . . . . Scanalyzers 2 | . . . . . . . . . . . . . . . . . . . 1 . 1 . . . Researchers 2 | . . . . . . . . . . . . . . . . . . . 1 . 1 . . . Garrison Access . | . . . . . . . . . . . . . . . . . . . . . . . . . Data Cores Recovered 1 | . . . . . . . . . . . . . . . . . . . . . . 1 . . Used . | . . . . . . . . . . . . . . . . . . . . . . . . . Hacking Detections 78 | . 8 9 . . . 8 7 . . . 12 . . . . 2 5 2 11 . 6 3 3 2 Full Trace Events 9 | . 1 1 . . . 1 . . . . 2 . . . . 2 . 1 1 . . . . . Feedback Events . | . . . . . . . . . . . . . . . . . . . . . . . . . Feedback Blocked . | . . . . . . . . . . . . . . . . . . . . . . . . . Robot Schematics Acquired 8 | . . . . 4 . . . . . . . . . . . . . . . . 4 . . . Robots Built . | . . . . . . . . . . . . . . . . . . . . . . . . . Authchips . | . . . . . . . . . . . . . . . . . . . . . . . . . Time . | . . . . . . . . . . . . . . . . . . . . . . . . . Total Robot Build Rating . | . . . . . . . . . . . . . . . . . . . . . . . . . Part Schematics Acquired 28 | . 1 . . 15 . 1 . . . . 1 . . . . 1 . . 2 . 7 . . . Parts Built 2 | . . . . . . . . . . . 1 . . . . . 1 . . . . . . . Authchips 2 | . . . . . . . . . . . 1 . . . . . 1 . . . . . . . Time 149 | . . . . . . . . . . . 47 . . . . . 102 . . . . . . . Total Part Build Rating 13 | . . . . . . . . . . . 5 . . . . . 8 . . . . . . . Parts Repaired 13 | . 2 2 . . . 2 . . . . 3 . . . . 1 2 . . . 1 . . . Time 667 | . 52 76 . . . 57 . . . . 250 . . . . 54 122 . . . 56 . . . Parts Recycled . | . . . . . . . . . . . . . . . . . . . . . . . . . Recycled Matter . | . . . . . . . . . . . . . . . . . . . . . . . . . Retrieved Matter . | . . . . . . . . . . . . . . . . . . . . . . . . . Retrieved Components . | . . . . . . . . . . . . . . . . . . . . . . . . . Parts Scanalyzed 6 | . . . . . . 1 . . . . 1 . . . . 2 . . 2 . . . . . Part Schematics Acquired 4 | . . . . . . 1 . . . . . . . . . 1 . . 2 . . . . . Parts Damaged 1 | . . . . . . . . . . . . . . . . 1 . . . . . . . . Bothacking | -11 -10 -9 -9 -7 -6 -6 -6 -6 -6 -6 -5 -5 -5 -5 -4 -4 -4 -3 -3 -2 -2 -2 -1 -1 ------------ Run | Yrd Mat Mat Min Zio Pro Fac Ext Cet Arc Hub Fac Upp Upp War Pro Fac Arm Res Qua Res Tes Sec Acc Com Used RIF Installer . | . . . . . . . . . . . . . . . . . . . . . . . . . Robots Hacked 2 | . . . . . . . . . . . . . . . . . . . . 1 . . . 1 Non-combat 1 | . . . . . . . . . . . . . . . . . . . . 1 . . . . Combat 1 | . . . . . . . . . . . . . . . . . . . . . . . . 1 Robot Hacks Applied 2 | . . . . . . . . . . . . . . . . . . . . 1 . . . 1 parse_system 2 | . . . . . . . . . . . . . . . . . . . . 1 . . . 1 Manual 1 | . . . . . . . . . . . . . . . . . . . . . . . . 1 Relay Couplers Released 4 | . . . . . . . . . . . . . . . . . . . . 1 . . 3 . Machine Destruction 1 | . . . . . . . . . . . . . . . . . . . . 1 . . . . Programmers 3 | . . . . . . . . . . . . . . . . . . . . . . . 3 . Fabnet Peak Effective % . | . . . . . . . . . . . . . . . . . . . . . . . . . Robots Rewired 18 | . . . . . . . 14 . . . . . . . . . 4 . . . . . . . Allies Hacked . | . . . . . . . . . . . . . . . . . . . . . . . . . Hacks Repelled . | . . . . . . . . . . . . . . . . . . . . . . . . . Allies | -11 -10 -9 -9 -7 -6 -6 -6 -6 -6 -6 -5 -5 -5 -5 -4 -4 -4 -3 -3 -2 -2 -2 -1 -1 -------- Run | Yrd Mat Mat Min Zio Pro Fac Ext Cet Arc Hub Fac Upp Upp War Pro Fac Arm Res Qua Res Tes Sec Acc Com Total Allies 44 | . . . 3 2 . . 25 5 . . 4 . . . . . 5 . . . . . . . Largest Group 22 | . . . 3 5 5 . 22 7 7 6 3 . . . . . 4 . . . . . . . Highest-Rated Group 761 | . . . 40 84 84 . 761 672 665 514 93 . . . . . 192 . . . . . . . Highest-Rated Ally 159 | . . . 16 30 30 . 159 153 146 96 31 . . . . . 48 . . . . . . . Total Orders 14 | . . . . . . . . 8 . 1 . . . . . . 1 2 2 . . . . . STAY 8 | . . . . . . . . 6 . 1 . . . . . . 1 . . . . . . . FOLLOW 2 | . . . . . . . . 2 . . . . . . . . . . . . . . . . EXPLORE 2 | . . . . . . . . . . . . . . . . . . 1 1 . . . . . RETURN 2 | . . . . . . . . . . . . . . . . . . 1 1 . . . . . Ally Attacks 374 | . . . . . 62 . 178 19 32 15 52 . . . . . 16 . . . . . . . Total Damage 7623 | . . . . . 636 . 3513 863 1081 267 770 . . . . . 493 . . . . . . . Kills 60 | . . . . . 7 . 32 7 2 3 2 . . . . . 7 . . . . . . . Allies Corrupted . | . . . . . . . . . . . . . . . . . . . . . . . . . Allies Melted 2 | . . . . . . . . . . . . . . 1 . . . . . 1 . . . . Intel | -11 -10 -9 -9 -7 -6 -6 -6 -6 -6 -6 -5 -5 -5 -5 -4 -4 -4 -3 -3 -2 -2 -2 -1 -1 ------- Run | Yrd Mat Mat Min Zio Pro Fac Ext Cet Arc Hub Fac Upp Upp War Pro Fac Arm Res Qua Res Tes Sec Acc Com Robot Analysis Total 6 | . 2 2 . . . . 1 . . . 1 . . . . . . . . . . . . . Derelict Logs Recovered 6 | . . . 1 1 2 . . . . . . . 1 . 1 . . . . . . . . . Drone Launches 3 | . . . . . . . . . . . . . . . . . . 2 1 . . . . . Drone Recoveries 2 | . . . . . . . . . . . . . . . . . . 1 1 . . . . . Exploration | -11 -10 -9 -9 -7 -6 -6 -6 -6 -6 -6 -5 -5 -5 -5 -4 -4 -4 -3 -3 -2 -2 -2 -1 -1 ------------- Run | Yrd Mat Mat Min Zio Pro Fac Ext Cet Arc Hub Fac Upp Upp War Pro Fac Arm Res Qua Res Tes Sec Acc Com Turns Passed 36606 | 160 2069 3594 1428 2449 1576 799 1881 524 2332 536 2641 971 522 808 542 1358 1585 1434 1215 1835 2295 1265 1949 838 Spaces Moved 15676 | 55 996 1242 545 1067 642 385 845 245 446 253 1200 536 322 459 333 606 592 618 490 917 952 789 764 377 Core 71 | . . . . . . . . . 66 . . . . . . . . 5 . . . . . . Treads 15320 | 49 996 1242 545 1067 642 385 845 245 380 253 1200 536 322 459 333 606 592 613 490 917 951 522 764 366 Legs 7 | 6 . . . . . . . . . . . . . . . . . . . . 1 . . . Wheels . | . . . . . . . . . . . . . . . . . . . . . . . . . Hover . | . . . . . . . . . . . . . . . . . . . . . . . . . Flight . | . . . . . . . . . . . . . . . . . . . . . . . . . Fastest Speed 120 | 120 160 160 225 225 225 155 155 156 160 160 160 160 160 160 160 160 160 155 155 150 150 151 151 151 Average Speed 184 | 155 160 231 225 225 229 163 155 157 476 160 160 160 160 160 160 160 160 179 155 175 153 151 151 151 Slowest Speed 2750 | 160 160 320 225 225 230 235 241 160 2300 160 160 160 160 160 160 160 160 2750 155 233 232 151 151 151 Overloaded Moves . | . . . . . . . . . . . . . . . . . . . . . . . . . Propulsion Burnouts . | . . . . . . . . . . . . . . . . . . . . . . . . . Robots Hopped . | . . . . . . . . . . . . . . . . . . . . . . . . . Cave-ins Triggered . | . . . . . . . . . . . . . . . . . . . . . . . . . Microwarps 24 | . . . . . . . . . . . . . . . . . . . . . . 23 . 1 Exploration Rate (%) 54 | 3 99 93 98 84 74 11 84 68 94 30 31 70 43 58 55 18 47 23 88 28 92 41 20 17 Regions Visited 24 Branch Regions 16 Pre-discovered Areas 2 | . . . . . 1 . . . . . . . 1 . . . . . . . . . . . Known Exits Taken 20 | . . 1 . . 1 1 1 1 1 1 1 1 1 1 1 1 1 1 1 1 1 1 1 . Unknown Exits Taken 4 | 1 1 . 1 1 . . . . . . . . . . . . . . . . . . . . Scrap Searched 10 | . . . 1 2 1 . . . . . . 3 1 . 2 . . . . . . . . . Spaces Dug 209 | . . 11 . . . 5 . . . 2 28 1 . 10 . 4 4 19 22 4 36 13 39 11 Terrain Destroyed 1340 | . 11 80 48 . 90 45 99 1 . 188 71 157 1 34 . 56 21 23 22 22 67 27 191 86 Melee 15 | . . 11 . . . 4 . . . . . . . . . . . . . . . . . . Projectile 343 | . . 2 . . 13 16 52 1 . 5 32 5 1 10 . 19 9 22 22 12 44 18 47 13 AOE 982 | . 11 67 48 . 77 25 47 . . 183 39 152 . 24 . 37 12 1 . 10 23 9 144 73 Terrain Rammed . | . . . . . . . . . . . . . . . . . . . . . . . . . Walls Destroyed . | . . . . . . . . . . . . . . . . . . . . . . . . . Machines Disabled . | . . . . . . . . . . . . . . . . . . . . . . . . . Actions | -11 -10 -9 -9 -7 -6 -6 -6 -6 -6 -6 -5 -5 -5 -5 -4 -4 -4 -3 -3 -2 -2 -2 -1 -1 --------- Run | Yrd Mat Mat Min Zio Pro Fac Ext Cet Arc Hub Fac Upp Upp War Pro Fac Arm Res Qua Res Tes Sec Acc Com Total 21872 | 92 1294 1684 719 1123 704 504 1220 372 610 348 1843 612 329 522 342 906 1149 880 909 1093 1656 932 1412 617 Wait 3525 | 10 157 146 139 11 27 66 64 75 113 51 464 30 . 6 . 153 371 154 304 60 409 220 393 102 Move 15398 | 54 995 1241 544 1066 641 384 844 244 445 252 1199 535 321 458 332 605 591 617 489 916 951 544 763 367 Hop . | . . . . . . . . . . . . . . . . . . . . . . . . . Pick Up 209 | 3 14 47 2 15 2 9 11 10 6 . 20 . . 4 . 10 8 6 6 8 9 6 3 10 Fast Attach 261 | 1 2 10 1 4 1 2 8 4 5 1 21 3 4 16 5 12 13 14 18 17 45 29 12 13 Attach 69 | 1 2 4 . 1 . 8 5 2 1 1 5 . . . . 4 4 2 1 3 3 5 6 11 Detach 18 | . . . . . . . . . . 1 . . . . . . 2 . 1 2 2 1 2 7 Swap 447 | 2 5 42 18 6 9 8 36 5 1 11 15 15 . 5 . 36 41 17 16 15 44 27 48 25 Drop 424 | 1 15 45 3 19 3 3 19 17 7 1 35 3 4 20 5 18 18 18 24 23 57 27 12 27 Fire 1277 | 20 101 136 10 . 21 19 93 15 11 30 82 26 . 13 . 67 60 52 49 45 133 73 172 49 Melee 50 | . . 12 . 1 . 4 . . 21 . . . . . . . . . . 4 3 . . 5 Ram . | . . . . . . . . . . . . . . . . . . . . . . . . . Kick . | . . . . . . . . . . . . . . . . . . . . . . . . . Crush 15 | . 3 1 2 . . 1 1 . . . 2 . . . . 1 1 . 1 . . . 1 1 Escape Stasis . | . . . . . . . . . . . . . . . . . . . . . . . . . Rewire 179 | . . . . . . . 139 . . . . . . . . . 40 . . . . . . . Trap . | . . . . . . . . . . . . . . . . . . . . . . . . . Miscellaneous . | . . . . . . . . . . . . . . . . . . . . . . . . . Route ------- -11/Scrapyard -10/Materials (discovered 5 exits: *Mat x3 / *Min x2) -9/Materials (discovered 5 exits: [*Mat x3] / *Min x2) -9/Mines (discovered 3 exits: [*Mat x2] / *Zio) -7/Zion -6/Proximity Caves -6/Factory (discovered 4 exits: Low x2 / *Ext x2) -6/Extension (discovered 2 exits: *Fac / *Cet) -6/Cetus (discovered 2 exits: *Fac / *Arc) -6/Archives (discovered 3 exits: *Fac / *Hub x2) -6/Hub_04(d) -5/Factory (discovered 6 exits: *Fac x4 / *Upp x2) -5/Upper Caves -5/Upper Caves -5/Warlord -4/Proximity Caves -4/Factory (discovered 3 exits: Res / *Upp / *Arm) -4/Armory (discovered 2 exits: *Res x2) -3/Research (discovered 2 exits: *Res / *Qua) -3/Quarantine -2/Research (discovered 3 exits: *Acc / *Tes x2) -2/Testing (discovered 2 exits: *Acc / *Sec) -2/Section 7 -1/Access -1/Command Free Derelict Territories History --------- Turn | Location | Event 17 | -11/Scrapyard | Discovered new exit (range 3) 161 | -11/Scrapyard | Entered Materials 274 | -10/Materials | Discovered new exit (range 18) 316 | -10/Materials | Build established: Mutant 598 | -10/Materials | Identified exit to Mines 740 | -10/Materials | Discovered new exit (range 14) 1783 | -10/Materials | Discovered new exit (range 13) 2136 | -10/Materials | Repaired Assault Rifle 2164 | -10/Materials | Repaired Lgt. Treads 2230 | -10/Materials | Entered another Materials area 2230 | -9/Materials | Evolved 2 slots: Propulsion x1, Utility x1 2881 | -9/Materials | Discovered new exit (range 7) 3913 | -9/Materials | Discovered new exit (range 15) 4320 | -9/Materials | Discovered new exit (range 11) 4567 | -9/Materials | Discovered new exit (range 5) 5037 | -9/Materials | Discovered new exit (range 11) 5139 | -9/Materials | Identified exit to Mines 5430 | -9/Materials | First assault squad dispatched 5710 | -9/Materials | Repaired Reactive Plating 5749 | -9/Materials | Repaired Adv. Treads 5824 | -9/Materials | Entered Mines 5883 | -9/Mines | Discovered new exit (range 9) 5885 | -9/Mines | Learned Materials garrison access intel 5962 | -9/Mines | A Derelict revealed a hidden shortcut to a safe place 5995 | -9/Mines | Discovered new exit (range 9) 6866 | -9/Mines | Received a Rocket Launcher from a helpful Derelict 6956 | -9/Mines | Found a damaged Exp. Sensor Array with a note attached 6962 | -9/Mines | Found Prototype Device 6963 | -9/Mines | Identified Exp. Sensor Array 7211 | -9/Mines | Assisted by bots powering up and referring to "LRC-V3" 7252 | -9/Mines | Entered Zion 7252 | -7/Zion | Accompanied by 3 allies 7813 | -7/Zion | Found Prototype Special Weapon 7813 | -7/Zion | Identified RU-N14's Throwing Claymores 7817 | -7/Zion | Found RU-N14's Throwing Claymores 7828 | -7/Zion | Found RU-N14's Throwing Claymores 7910 | -7/Zion | Found Prototype Device 7927 | -7/Zion | Identified Phasing AFG 8158 | -7/Zion | Found CR-A16's Pointy Stick 8583 | -7/Zion | Learned Factory garrison access intel 8682 | -7/Zion | Received a hallucinogenic algorithm 9139 | -7/Zion | Met Imprinter 9294 | -7/Zion | Gained Derelict followers 9554 | -7/Zion | Given A8's code to call for help 9675 | -7/Zion | Discovered new exit (range 12) 9701 | -7/Zion | Entered Proximity Caves 9701 | -6/Proximity Caves | Accompanied by 5 allies 9703 | -6/Proximity Caves | Attracted the attention of an 0b10 checkpoint 9814 | -6/Proximity Caves | Lost 3 allies 9950 | -6/Proximity Caves | Spotter reported a threat 10004 | -6/Proximity Caves | Learned location of Extension (-6) 10008 | -6/Proximity Caves | Identified exit to Factory 10015 | -6/Proximity Caves | Spotter reported a threat 10080 | -6/Proximity Caves | Spotter reported a threat 10133 | -6/Proximity Caves | Spotter reported a threat 10264 | -6/Proximity Caves | Spotter reported a threat 11277 | -6/Proximity Caves | Entered Factory 11277 | -6/Factory | Evolved 6 slots: Propulsion x3, Utility x2, Weapon x1 11278 | -6/Factory | Loaded intel: 4 garrison access locations 11436 | -6/Factory | Repaired Adv. Treads 11624 | -6/Factory | Repaired Adv. Treads 11627 | -6/Factory | Search patrols dispatched 11977 | -6/Factory | Search patrols dispatched 11998 | -6/Factory | Identified exit to Lower Caves 11998 | -6/Factory | Identified exit to Extension 12076 | -6/Factory | Entered Extension 12093 | -6/Extension | Build established: Scavenger-Skirmisher 12661 | -6/Extension | Rescued A7 12766 | -6/Extension | Rescued a captive Derelict 12767 | -6/Extension | Rescued a captive Derelict 12780 | -6/Extension | Rescued a captive Derelict 12896 | -6/Extension | Rescued a captive Derelict 12931 | -6/Extension | Rescued a captive Derelict 12932 | -6/Extension | Rescued a captive Derelict 12976 | -6/Extension | Build established: Scavenger-Tank 13051 | -6/Extension | Disrupted transfer network 13229 | -6/Extension | Spotted B-75 Beast 13241 | -6/Extension | Allies destroyed B-75 Beast 13253 | -6/Extension | Spotted B-75 Beast 13272 | -6/Extension | Allies destroyed B-75 Beast 13403 | -6/Extension | Rescued a captive Derelict 13405 | -6/Extension | Rescued a captive Derelict 13777 | -6/Extension | Rescued a captive Derelict 13778 | -6/Extension | Rescued a captive Derelict 13826 | -6/Extension | First assault squad dispatched 13892 | -6/Extension | Lost 20 allies 13917 | -6/Extension | Discovered new exit (range 10) 13919 | -6/Extension | Discovered new exit (range 6) 13950 | -6/Extension | Identified exit to Cetus 13957 | -6/Extension | Entered Cetus 13957 | -6/Cetus | Accompanied by 3 allies (A7) 13962 | -6/Cetus | Acquired a Cetus Manufacturing Module code from A7 13981 | -6/Cetus | Spotted Cetus Guard 13981 | -6/Cetus | Spotted Cetus Guard 13985 | -6/Cetus | Spotted Cetus Guard 13990 | -6/Cetus | Allies destroyed Cetus Guard 13990 | -6/Cetus | Spotted Cetus Guard 13998 | -6/Cetus | Destroyed Cetus Guard 14001 | -6/Cetus | Allies destroyed Cetus Guard 14005 | -6/Cetus | Destroyed Cetus Guard 14066 | -6/Cetus | System corruption reached 10% 14138 | -6/Cetus | Started Cetus Manufacturing Module 14155 | -6/Cetus | Escorted A7 to Cetus Mainframe 14163 | -6/Cetus | Manufactured an Enhanced Grunt 14188 | -6/Cetus | Manufactured an Enhanced Grunt 14213 | -6/Cetus | Manufactured an Enhanced Grunt 14238 | -6/Cetus | Manufactured an Enhanced Grunt 14263 | -6/Cetus | Manufactured an Enhanced Grunt 14285 | -6/Cetus | Discovered new exit (range 16) 14317 | -6/Cetus | Spotted Cetus Guard 14318 | -6/Cetus | Spotted Cetus Guard 14321 | -6/Cetus | Spotted Cetus Guard 14322 | -6/Cetus | Allies destroyed Cetus Guard 14322 | -6/Cetus | Spotted Cetus Guard 14328 | -6/Cetus | Allies destroyed Cetus Guard 14333 | -6/Cetus | Allies destroyed Cetus Guard 14335 | -6/Cetus | Destroyed Cetus Guard 14348 | -6/Cetus | Discovered new exit (range 15) 14357 | -6/Cetus | Met Revision 17 14477 | -6/Cetus | Identified exit to Archives 14481 | -6/Cetus | Entered Archives 14481 | -6/Archives | Accompanied by 7 allies (A7) 14486 | -6/Archives | Received a hacking code to weaken MAIN.C 14545 | -6/Archives | Discovered new exit (range 15) 14628 | -6/Archives | Discovered new exit (range 16) 14718 | -6/Archives | Discovered new exit (range 16) 14826 | -6/Archives | Build established: Commander-Mutant 16706 | -6/Archives | Unable to access archive contents 16730 | -6/Archives | Identified exit to Hub_04(d) 16813 | -6/Archives | Entered Hub_04(d) 16813 | -6/Hub_04(d) | Accompanied by 6 allies 17235 | -6/Hub_04(d) | Build established: Scavenger-Mutant 17310 | -6/Hub_04(d) | Discovered new exit (range 4) 17315 | -6/Hub_04(d) | Identified exit to Factory 17347 | -6/Hub_04(d) | Network Hub disabled 17349 | -6/Hub_04(d) | Entered Factory 17349 | -5/Factory | Evolved 2 slots: Utility x2 17449 | -5/Factory | Fabricated Lrn. Missile Launcher (x1) 17531 | -5/Factory | Identified exit to Factory 17637 | -5/Factory | Build established: Scavenger-Tank 17825 | -5/Factory | Repaired Centrium Heavy Treads 17900 | -5/Factory | Repaired Quantum Reactor 17992 | -5/Factory | Identified exit to Upper Caves 19205 | -5/Factory | Allied Derelicts emerged from ambush trap array 19346 | -5/Factory | Garrison activated, responded to threat 19406 | -5/Factory | Lost 3 allies 19592 | -5/Factory | Repaired Broken Centrium Heavy Treads 19990 | -5/Factory | Entered Upper Caves 20094 | -5/Upper Caves | Encountered a Warlord checkpoint 20543 | -5/Upper Caves | Attracted the attention of an 0b10 checkpoint 20654 | -5/Upper Caves | Discovered new exit (range 15) 20823 | -5/Upper Caves | Identified exit to Upper Caves 20961 | -5/Upper Caves | Entered another Upper Caves area 20969 | -5/Upper Caves | Learned location of Armory (-4) 21046 | -5/Upper Caves | Learned Factory security intel 21046 | -5/Upper Caves | Learned Extension garrison access intel 21185 | -5/Upper Caves | Discovered new exit (range 15) 21214 | -5/Upper Caves | Identified exit to Warlord 21483 | -5/Upper Caves | Entered Warlord 21538 | -5/Warlord | System corruption cleaned by Quarantine Array 21596 | -5/Warlord | Found Prototype Special Weapon 21596 | -5/Warlord | Identified RU-N14's Throwing Claymores v3 21710 | -5/Warlord | Visited the Vortex Lab 21717 | -5/Warlord | Found Prototype Energy Gun 21717 | -5/Warlord | Identified Vortex Rifle 21721 | -5/Warlord | Warlord's base attacked by MAIN.C 21726 | -5/Warlord | Found Prototype Energy Gun 21726 | -5/Warlord | Identified Vortex Shotgun 21732 | -5/Warlord | Found Vortex Rifle 21783 | -5/Warlord | Met Warlord 22071 | -5/Warlord | Warlord forces counterattacked 22153 | -5/Warlord | Spotted Striker 22221 | -5/Warlord | Lost 7 allies 22225 | -5/Warlord | Spotted Striker 22225 | -5/Warlord | Spotted Striker 22245 | -5/Warlord | Discovered new exit (range 12) 22267 | -5/Warlord | Identified exit to Proximity Caves 22291 | -5/Warlord | Entered Proximity Caves 22292 | -4/Proximity Caves | Lost 12 allies 22606 | -4/Proximity Caves | Learned 4 Research zone layouts 22669 | -4/Proximity Caves | Discovered exit to Factory (range 8) 22833 | -4/Proximity Caves | Entered Factory 22833 | -4/Factory | Evolved 2 slots: Power x1, Utility x1 22834 | -4/Factory | Identified exit to Research 23166 | -4/Factory | Discovered new exit (range 15) 23284 | -4/Factory | Identified exit to Upper Caves 23660 | -4/Factory | Repaired Centrium Heavy Treads 23931 | -4/Factory | Discovered new exit (range 22) 24190 | -4/Factory | Identified exit to Armory 24191 | -4/Factory | Entered Armory 24632 | -4/Armory | Found Unknown Launcher 24632 | -4/Armory | Identified Gamma Bomb Array 24686 | -4/Armory | Discovered exit to Research (range 24) 24691 | -4/Armory | First assault squad dispatched 24796 | -4/Armory | Fabricated Centrium Heavy Treads (x1) 24816 | -4/Armory | Lost 3 allies 25003 | -4/Armory | Destroyed 8 combat bots 25183 | -4/Armory | Repaired Centrium Heavy Treads 25254 | -4/Armory | Repaired Broken Centrium Heavy Treads 25301 | -4/Armory | Build established: Scavenger-Skirmisher 25745 | -4/Armory | System corruption reached 10% 25776 | -4/Armory | Entered Research 25776 | -3/Research | Evolved 2 slots: Utility x2 25916 | -3/Research | Discovered new exit (range 16) 25976 | -3/Research | Revision forces began assault on 0b10 25980 | -3/Research | Identified exit to Research 26050 | -3/Research | Met up with Revision 17++ 26475 | -3/Research | Found Gamma Bomb Array 26476 | -3/Research | Research terminal network offline 26515 | -3/Research | Found Corrupted Powered Armor 26516 | -3/Research | System corruption reached 10% 26564 | -3/Research | Lost 3 allies 26839 | -3/Research | Build established: Skirmisher 27131 | -3/Research | Spotted Striker 27160 | -3/Research | Discovered new exit (range 11) 27208 | -3/Research | Identified exit to Quarantine 27210 | -3/Research | Entered Quarantine 27595 | -3/Quarantine | Found Alien Impact Weapon 28216 | -3/Quarantine | Found Alien Artifact 28216 | -3/Quarantine | Identified Subatomic Replicator 28354 | -3/Quarantine | Found Alien Artifact 28354 | -3/Quarantine | Identified Phase Armor 28425 | -3/Quarantine | Entered Research 28425 | -2/Research | Warlord forces began assault on 0b10 28425 | -2/Research | Evolved 2 slots: Power x1, Utility x1 28535 | -2/Research | Research machine network offline 28630 | -2/Research | Identified Core Stripper 28644 | -2/Research | Borebot progress halted 28670 | -2/Research | P-80 Master assimilated allied 1U-59D(S) 28723 | -2/Research | Spotted Striker 28743 | -2/Research | Destroyed Striker 28865 | -2/Research | Discovered new exit (range 12) 28880 | -2/Research | Identified exit to Testing 28896 | -2/Research | Discovered new exit (range 15) 28952 | -2/Research | Spotted Executioner 28958 | -2/Research | Destroyed Executioner 28978 | -2/Research | Discovered exit to Testing (range 15) 29016 | -2/Research | Spotted Executioner 29016 | -2/Research | Borebot progress halted 29045 | -2/Research | Lost 4 allies 29104 | -2/Research | Identified exit to Access 29255 | -2/Research | Build established: Gunner 29689 | -2/Research | Build established: Skirmisher 29805 | -2/Research | Spotted Striker 29808 | -2/Research | Spotted Striker 29813 | -2/Research | Destroyed Striker 29819 | -2/Research | Destroyed Striker 30044 | -2/Research | Spotted Striker 30046 | -2/Research | Spotted Striker 30055 | -2/Research | Destroyed Striker 30058 | -2/Research | Destroyed Striker 30173 | -2/Research | Met up with Warlord 30260 | -2/Research | Entered Testing 30321 | -2/Testing | Found Prototype Hackware 30440 | -2/Testing | Identified Exp. Hacking Suite 30498 | -2/Testing | Repaired Imp. Weapon Cycler 30530 | -2/Testing | Found Prototype Device 30530 | -2/Testing | Identified Femtoactuators 30546 | -2/Testing | Discovered exit to Access (range 20) 30729 | -2/Testing | Found Prototype Leg 30729 | -2/Testing | Identified Myomer Exoskeleton 30769 | -2/Testing | Found Prototype Energy Cannon 30769 | -2/Testing | Identified Hpw. Disruptor Cannon 30811 | -2/Testing | Found Prototype Energy Cannon 30811 | -2/Testing | Identified Disintegrator 31338 | -2/Testing | Build established: Gunner 31380 | -2/Testing | Found Prototype Protection 31380 | -2/Testing | Identified SHELL Armor 31390 | -2/Testing | Found Prototype Device 31390 | -2/Testing | Identified AEGIS Remote Shield 31732 | -2/Testing | Found Prototype Energy Gun 31732 | -2/Testing | Identified Hyp. EM Gauss Rifle 31879 | -2/Testing | Found Prototype Launcher 31879 | -2/Testing | Identified Gui. Micro-nuke Launcher 32304 | -2/Testing | System corruption reached 10% 32343 | -2/Testing | Spotted Fortress 32358 | -2/Testing | Destroyed Fortress 32371 | -2/Testing | Found Prototype Device 32371 | -2/Testing | Identified Thermal Barrier 32374 | -2/Testing | Found Prototype Device 32374 | -2/Testing | Identified Exp. Force Field 32386 | -2/Testing | Found Unknown Protection 32386 | -2/Testing | Identified Hvy. Insulated Plating 32391 | -2/Testing | Found Prototype Reactor 32391 | -2/Testing | Identified Vortex Chain Reactor 32417 | -2/Testing | Found Prototype Device 32417 | -2/Testing | Identified Exp. EM Disruption Field 32503 | -2/Testing | Build established: Mutant 32542 | -2/Testing | Discovered new exit (range 6) 32548 | -2/Testing | Identified exit to Section 7 32555 | -2/Testing | Entered Section 7 32621 | -2/Section 7 | Found Alien Artifact 32621 | -2/Section 7 | Identified Spacefold Activator 33084 | -2/Section 7 | Found Alien Artifact 33084 | -2/Section 7 | Identified Integrated Dissipator 33084 | -2/Section 7 | Installed Integrated Dissipator, increased core heat dissipation (+20) 33090 | -2/Section 7 | Discovered exit to Access (range 3) 33110 | -2/Section 7 | Found Prototype Protection 33110 | -2/Section 7 | Identified Centrium Heavy Armor Plating 33185 | -2/Section 7 | Found Prototype Processor 33185 | -2/Section 7 | Identified Exp. Core Analyzer 33613 | -2/Section 7 | Found Alien Artifact 33613 | -2/Section 7 | Identified Microwarp Drive 33713 | -2/Section 7 | Spotted B-99 Colossus 33721 | -2/Section 7 | Found Alien Artifact 33721 | -2/Section 7 | Identified Integrated Reactor 33721 | -2/Section 7 | Installed Integrated Reactor, increased core energy generation (+10) 33727 | -2/Section 7 | Found Integrated Reactor 33727 | -2/Section 7 | Installed Integrated Reactor, increased core energy generation (+10) 33735 | -2/Section 7 | Found Integrated Reactor 33735 | -2/Section 7 | Installed Integrated Reactor, increased core energy generation (+10) 33740 | -2/Section 7 | Core integrity fell below 50% 33746 | -2/Section 7 | Found Alien Artifact 33746 | -2/Section 7 | Identified LRC Armor 33746 | -2/Section 7 | Installed LRC Armor, increased core integrity (+250) 33749 | -2/Section 7 | Found Alien Artifact 33749 | -2/Section 7 | Identified LRC Energy Well 33749 | -2/Section 7 | Installed LRC Energy Well, increased energy storage capacity (+250) 33782 | -2/Section 7 | Spotted Alpha 7 33784 | -2/Section 7 | Spotted Alpha 7 33820 | -2/Section 7 | Entered Access 33820 | -1/Access | Evolved 2 slots: Utility x2 33953 | -1/Access | Identified exit to Command 34108 | -1/Access | Found Prototype Launcher 34108 | -1/Access | Identified Point Singularity Launcher 34142 | -1/Access | Build established: Skirmisher 34679 | -1/Access | System corruption reached 10% 34723 | -1/Access | Garrison activated, responded to threat 34776 | -1/Access | Destroyed 8 combat bots 35320 | -1/Access | First assault squad dispatched 35480 | -1/Access | Garrison activated, responded to threat 35563 | -1/Access | Build established: Gunner 35769 | -1/Access | Entered Command 35935 | -1/Command | Found Quantum Capacitor 36036 | -1/Command | Phase Generator disabled 36187 | -1/Command | Discovered new exit (range 21) 36269 | -1/Command | First assault squad dispatched 36303 | -1/Command | Disengaged cave seal 36303 | -1/Command | Derelicts emerged from the dark tunnel 36303 | -1/Command | Welcomed Warlord to Command 36314 | -1/Command | Spotted B-99 Colossus 36378 | -1/Command | Warlord commented on Warlord statues 36388 | -1/Command | Spotted M Guard 36388 | -1/Command | Spotted M Guard 36388 | -1/Command | Spotted Combat Programmer 36388 | -1/Command | Spotted Combat Programmer 36389 | -1/Command | Combat Programmer assimilated allied DA-T06(g) 36393 | -1/Command | Destroyed M Guard 36408 | -1/Command | Destroyed M Guard 36415 | -1/Command | Found Prototype Reactor 36415 | -1/Command | Identified Zero-point Reactor 36415 | -1/Command | All MAIN.C guards destroyed 36418 | -1/Command | Found Zero-point Reactor 36422 | -1/Command | Found Prototype Device 36422 | -1/Command | Identified Thermal Barrier 36453 | -1/Command | Found Prototype Energy Cannon 36453 | -1/Command | Identified Cld. Nova Cannon 36489 | -1/Command | Found Zero-point Reactor 36500 | -1/Command | Found Prototype Processor 36500 | -1/Command | Identified Exp. Targeting Computer 36516 | -1/Command | Found Exp. Targeting Computer 36568 | -1/Command | Met MAIN.C 36568 | -1/Command | Hacked MAIN.C using A7's code 36568 | -1/Command | 0b10 Conduit disabled 36588 | -1/Command | MAIN.C activated Command garrisons 36592 | -1/Command | Used Subatomic Replicator to replicate Graviton Cannon 36607 | *** | Establishing Free Derelict Territories! Last Messages --------------- 36600_ Ended siege mode. 36600_ 3N-30F(s) knocked back. 36600_ MAIN.C reaction time slowed by virus. 36600_ Blast Slug penetrates MAIN.C. 36600_ J0-EL1(h) knocked back. 36600_ Blast Slug penetrates MAIN.C. 36600_ MAIN.C knocked back. 36601_ MAIN.C reaction time slowed by virus. 36602_ Acquired Graviton Cannon. 36603_ MAIN.C suffers critical hit (Destroy). 36603_ Blast Slug penetrates MAIN.C. 36605_ MAIN.C reaction time slowed by virus. 36605_ HV Slug penetrates MAIN.C. 36606_ Blast Slug penetrates MAIN.C. 36606_ MAIN.C: "I hope you know you're still going to DIE HERE WITH ME!" 36606_ MAIN.C destroyed. ZY-L1N: Victory! Sure there's still lots to do, but without MAIN.C at the helm 0b10 doesn't stand a chance. We've got this... Map ----- +----------------------------------------------------+ | ?????????????????????????????????????????????????? | | ?????????????????????????????????????????????????? | | ?????????????????????????????????????????????????? | | ?????????????????????????????????????????????????? | | ?????????????????????????????????????????????????? | | ?????????????????????????????????????????????????? | | ?????????????????????????????????????????????????? | | ?????????????????????????????????????????????????? | | ?????????????????????????????????????????????????? | | ?????????????????????????????????????????????????? | | ?????????????????????????????????????????????????? | | ?????????????????????????????????????????????????? | | ?????????????????????????????????????????????????? | | ?????????????????????????????????????????????????? | | ?????????????????????????????????????????????????? | | ?????????????????????????????????????????????????? | | ?????????????????????????????????????????????????? | | ?????????????????????????????????????????????????? | | ?????????????????????????????????????????????????? | | ?????????????????????????????????????????????????? | | ??????????????????#################??????????????? | | ????????????????"""" """" #??????????????? | | ???????????????? "" #??????????????? | | ?????????????????" "" sh################ | | ???????????????""""""""" %s /%s | | ?????????????? " " @ sWBBBBs | | ??????????????" """""" BBBBss | | ??????????????????"" ################ | | ?????????????????""""" h #??????????????? | | ????????????????? % #??????????????? | | ???????????????? % ""#??????????????? | | ??????????????? % """""""#??????????????? | | ??????????????? """"""""#??????????????? | | ??????????????? $ """"""""""#??????????????? | | ?????????????? % " " " ?????????????????? | | ?????????????? % % " " "?????????????????????? | | ?????????????? " " ? ??????????????????????? | | ???????????????? """ " ? ??????????????????????? | | ????????????????????? ?? ? ??????????????????????? | | ?????????????????????"???????????????????????????? | | ?????????????????????????????????????????????????? | | ?????????????????????????????????????????????????? | | ?????????????????????????????????????????????????? | | ?????????????????????????????????????????????????? | | ?????????????????????????????????????????????????? | | ?????????????????????????????????????????????????? | | ?????????????????????????????????????????????????? | | ?????????????????????????????????????????????????? | | ?????????????????????????????????????????????????? | | ?????????????????????????????????????????????????? | +----------------------------------------------------+ Best States ------------- Heat Dissipation 110 Coolant Potential 120 Energy Generation 109 Energy Capacity 1040 Matter Stores 300 Matter Capacity 300 Sight Range 23 Robot Scan Range 20 Terrain Scan Range 24 Terrain Scan Density 85 Jamming Range 16 Armor Coverage 1800 Resistance: KI 20 Resistance: TH 25 Resistance: EM 75 Point Defense Rating 240 Weapon Cycling 20 Evasion (%) 45 Targeting Accuracy 24 Core Analysis 8 Recoil Reduction 6 Energy Filtering 50 Particle Charging 20 Kinecelleration 30 Salvage Targeting 2 Offensive Hacking 30 Defensive Hacking 12 Authchip Count 2 Item Schematics ----------------- Huge Storage Unit | -10/Materials | Hacked Imp. Shield Generator | -7/Zion | Archive Hvy. Plasma Cannon | -7/Zion | Archive Energy Filter | -7/Zion | Archive Lyr. Medium Armor Plating | -7/Zion | Archive Recalibrator | -7/Zion | Archive Lrn. Missile Launcher | -7/Zion | Archive Imp. Deuterium Engine | -7/Zion | Archive Adv. Cooling System | -7/Zion | Archive Variable Charge Gun | -7/Zion | Archive Imp. EM Pulse Cannon | -7/Zion | Archive Imp. System Restoration Module | -7/Zion | Archive Gauss Cannon | -7/Zion | Archive Angular Momentum Engine | -7/Zion | Archive Lgt. Fission Core | -7/Zion | Archive Hvy. Missile Launcher | -7/Zion | Archive Hrd. Medium Armor Plating | -6/Factory | Scanalyzed Adv. Plasma Cannon | -5/Factory | Hacked Centrium Heavy Treads | -4/Factory | Scanalyzed Hyp. Mass Driver | -3/Quarantine | Scanalyzed Imp. Weapon Cycler | -3/Quarantine | Scanalyzed Cld. Gravmag System | -2/Testing | Archive Exp. Shock Absorption System | -2/Testing | Archive Imp. Diametric Drive | -2/Testing | Archive Exp. Hacking Suite | -2/Testing | Archive Hdn. Centrium Wheel | -2/Testing | Archive Imp. Particle Accelerator | -2/Testing | Archive Cld. Linear Gravjet | -2/Testing | Archive Robot Schematics ------------------ X-62 Marksman | -7/Zion | Archive K-01 Serf | -7/Zion | Archive Y-54 Guardian | -7/Zion | Archive D-83 Annihilator | -7/Zion | Archive A-15 Conveyor | -2/Testing | Archive H-88 Terminator | -2/Testing | Archive G-73 Enforcer | -2/Testing | Archive A-27 Freighter | -2/Testing | Archive Fabricated ------------ Lrn. Missile Launcher | x1 | -5/Factory | Authchip Centrium Heavy Treads | x1 | -4/Armory | Authchip Alien Tech Used ----------------- Subatomic Replicator Phase Armor Core Stripper Spacefold Activator Integrated Dissipator Microwarp Drive Integrated Reactor LRC Armor LRC Energy Well Achievements -------------- None Challenges ------------ None Game ------ Seed ChainPulseWell Manual? 0 Play Time 07:29:32 Cumulative 148.6 hours Start 2025.05.02 @ 20:37:47 End 2025.05.04 @ 15:38:22 Sessions 109 Manual Loads 0 Difficulty Rogue Special Mode None Game No. 19 Rogue 12 Adventurer 4 Explorer 3 Win Type 7 Total 14 Types 9/1/2/0/0/0/0/2/0 Lore% 56 Gallery% 66 Achievement% 64 Wizard Run 0 Options --------- Layout 0 ASCII 0 Keyboard 0 Movement Mouse Keybinds 0 Fullscreen 1 Font 18/TerminusBold Map View 76x50 Zoom Use 0% Tactical HUD 1 Map Filters NONE Filters NONE Steam 1 RUN: ac2f2a16-c2c1-4228-989c-078bf12e4aa1